[Event "*** SCC Grand Prix: Titled Tuesday Blitz"]
[Site "Chess.com"]
[Date "2020.07.14"]
[Round "4"]
[White "andy_rekt"]
[Black "Caterpiller35"]
[Result "1/2-1/2"]
[WhiteElo "2299"]
[BlackElo "2443"]
[TimeControl "180+1"]
[EndTime "10:40:59 PDT"]
[Termination "Game drawn - insufficient material"]

1. d4 {[%clk 0:03:00.9]} 1... Nf6 {[%clk 0:02:58]} 2. c4 {[%clk 0:03:01]} 2...
e6 {[%clk 0:02:58.2]} 3. Nc3 {[%clk 0:03:01.1]} 3... Bb4 {[%clk 0:02:58.8]} 4.
e3 {[%clk 0:03:01.3]} 4... Ne4 {[%clk 0:02:58.1]} 5. Ne2 {[%clk 0:03:00.8]} 5...
b6 {[%clk 0:02:56.9]} 6. f3 {[%clk 0:02:54.8]} 6... Bxc3+ {[%clk 0:02:50.3]} 7.
bxc3 {[%clk 0:02:52.5]} 7... Nd6 {[%clk 0:02:48.5]} 8. Ng3 {[%clk 0:02:34.7]}
8... h5 {[%clk 0:02:38]} 9. Ne4 {[%clk 0:02:32.1]} 9... Nxe4 {[%clk 0:02:36.6]}
10. fxe4 {[%clk 0:02:32]} 10... Qh4+ {[%clk 0:02:37.3]} 11. Kd2 {[%clk
0:02:22.5]} 11... Qxe4 {[%clk 0:02:38.2]} 12. Qf3 {[%clk 0:02:19.6]} 12... Bb7
{[%clk 0:02:31]} 13. Be2 {[%clk 0:02:09.1]} 13... Qxf3 {[%clk 0:02:25.1]} 14.
gxf3 {[%clk 0:02:08]} 14... d6 {[%clk 0:02:24.6]} 15. e4 {[%clk 0:02:07.5]}
15... g6 {[%clk 0:02:24]} 16. Kc2 {[%clk 0:02:06.1]} 16... c5 {[%clk 0:02:23.4]}
17. Bg5 {[%clk 0:02:05.5]} 17... Nc6 {[%clk 0:02:21.7]} 18. Bf6 {[%clk
0:01:59.7]} 18... O-O {[%clk 0:02:17.7]} 19. d5 {[%clk 0:01:54.5]} 19... Na5
{[%clk 0:02:09.8]} 20. Be7 {[%clk 0:01:47.8]} 20... Rfe8 {[%clk 0:02:09.5]} 21.
Bxd6 {[%clk 0:01:47.9]} 21... Ba6 {[%clk 0:02:02.4]} 22. f4 {[%clk 0:01:19.5]}
22... exd5 {[%clk 0:01:59.5]} 23. e5 {[%clk 0:01:11.9]} 23... Bxc4 {[%clk
0:01:57.8]} 24. Bd1 {[%clk 0:01:09.9]} 24... Nb7 {[%clk 0:01:52.3]} 25. Rg1
{[%clk 0:01:04.8]} 25... Nxd6 {[%clk 0:01:51.3]} 26. exd6 {[%clk 0:01:03.9]}
26... Rad8 {[%clk 0:01:49.9]} 27. Bxh5 {[%clk 0:01:01]} 27... Rxd6 {[%clk
0:01:45.1]} 28. f5 {[%clk 0:00:57.2]} 28... Be2 {[%clk 0:01:44.2]} 29. Bxe2
{[%clk 0:00:52.3]} 29... Rxe2+ {[%clk 0:01:42.5]} 30. Kd3 {[%clk 0:00:52.9]}
30... Rxh2 {[%clk 0:01:40.4]} 31. fxg6 {[%clk 0:00:52.8]} 31... Rxg6 {[%clk
0:01:40.3]} 32. Rxg6+ {[%clk 0:00:49.4]} 32... fxg6 {[%clk 0:01:41.2]} 33. a4
{[%clk 0:00:49.1]} 33... Kf7 {[%clk 0:01:29.9]} 34. a5 {[%clk 0:00:48.6]} 34...
b5 {[%clk 0:01:08.4]} 35. a6 {[%clk 0:00:47.5]} 35... Rb2 {[%clk 0:00:58.9]} 36.
Rf1+ {[%clk 0:00:42.8]} 36... Ke6 {[%clk 0:00:58.8]} 37. Rg1 {[%clk 0:00:39.9]}
37... c4+ {[%clk 0:00:58.3]} 38. Kd4 {[%clk 0:00:37.7]} 38... Rd2+ {[%clk
0:00:57.5]} 39. Kc5 {[%clk 0:00:37.6]} 39... Kf5 {[%clk 0:00:41.3]} 40. Kxb5
{[%clk 0:00:35.7]} 40... g5 {[%clk 0:00:39.3]} 41. Kc6 {[%clk 0:00:35.3]} 41...
g4 {[%clk 0:00:38.9]} 42. Kb7 {[%clk 0:00:35.2]} 42... Rb2+ {[%clk 0:00:29.6]}
43. Kc6 {[%clk 0:00:21.7]} 43... d4 {[%clk 0:00:24.9]} 44. cxd4 {[%clk
0:00:20.5]} 44... c3 {[%clk 0:00:25.1]} 45. Rc1 {[%clk 0:00:18.6]} 45... c2
{[%clk 0:00:22.5]} 46. d5 {[%clk 0:00:19.1]} 46... Ke5 {[%clk 0:00:21.7]} 47. d6
{[%clk 0:00:17.8]} 47... Rb6+ {[%clk 0:00:21.6]} 48. Kc5 {[%clk 0:00:17]} 48...
Rxd6 {[%clk 0:00:18.9]} 49. Re1+ {[%clk 0:00:16.7]} 49... Kf4 {[%clk 0:00:15.9]}
50. Kxd6 {[%clk 0:00:16.9]} 50... g3 {[%clk 0:00:13.4]} 51. Kc6 {[%clk
0:00:16.1]} 51... g2 {[%clk 0:00:11.9]} 52. Kb7 {[%clk 0:00:16.4]} 52... Kf3
{[%clk 0:00:12.2]} 53. Kxa7 {[%clk 0:00:16.4]} 53... Kf2 {[%clk 0:00:12.2]} 54.
Rc1 {[%clk 0:00:16.1]} 54... g1=Q {[%clk 0:00:12]} 55. Rxc2+ {[%clk 0:00:16.4]}
55... Kf3+ {[%clk 0:00:10.4]} 56. Kb7 {[%clk 0:00:16.1]} 56... Qb1+ {[%clk
0:00:10.6]} 57. Ka8 {[%clk 0:00:15.4]} 57... Qb5 {[%clk 0:00:05.1]} 58. a7
{[%clk 0:00:12.6]} 58... Qd5+ {[%clk 0:00:03.9]} 59. Kb8 {[%clk 0:00:12.3]}
59... Qb3+ {[%clk 0:00:04.2]} 60. Ka8 {[%clk 0:00:12.3]} 60... Qxc2 {[%clk
0:00:04.6]} 61. Kb8 {[%clk 0:00:12.8]} 61... Qb3+ {[%clk 0:00:04]} 62. Kc7
{[%clk 0:00:10.8]} 62... Qc4+ {[%clk 0:00:03.4]} 63. Kb7 {[%clk 0:00:10.7]}
63... Qb5+ {[%clk 0:00:03.6]} 64. Ka8 {[%clk 0:00:09.7]} 64... Qe8+ {[%clk
0:00:02.6]} 65. Kb7 {[%clk 0:00:09.8]} 65... Qe7+ {[%clk 0:00:02.8]} 66. Kb8
{[%clk 0:00:09.6]} 66... Qd6+ {[%clk 0:00:02.5]} 67. Kb7 {[%clk 0:00:09.8]}
67... Qd7+ {[%clk 0:00:01.9]} 68. Kb8 {[%clk 0:00:10.1]} 68... Qd8+ {[%clk
0:00:02.3]} 69. Kb7 {[%clk 0:00:10.4]} 69... Qd7+ {[%clk 0:00:02.7]} 70. Kb8
{[%clk 0:00:10.9]} 70... Qxa7+ {[%clk 0:00:03.6]} 71. Kxa7 {[%clk 0:00:11.1]}
1/2-1/2

[Event "*** SCC Grand Prix: Titled Tuesday Blitz"]
[Site "Chess.com"]
[Date "2020.07.14"]
[Round "4"]
[White "vovachesss"]
[Black "mishanick"]
[Result "1/2-1/2"]
[WhiteElo "2609"]
[BlackElo "2845"]
[TimeControl "180+1"]
[EndTime "10:41:03 PDT"]
[Termination "Game drawn by stalemate"]

1. c4 {[%clk 0:03:00.9]} 1... e5 {[%clk 0:01:57.4]} 2. Nc3 {[%clk 0:02:57.9]}
2... Nf6 {[%clk 0:01:57.9]} 3. g3 {[%clk 0:02:58]} 3... Bb4 {[%clk 0:01:56.1]}
4. e4 {[%clk 0:02:58.1]} 4... O-O {[%clk 0:01:54.1]} 5. Bg2 {[%clk 0:02:57]}
5... d6 {[%clk 0:01:54.7]} 6. Nge2 {[%clk 0:02:55.7]} 6... Nc6 {[%clk
0:01:55.3]} 7. O-O {[%clk 0:02:51.2]} 7... Bg4 {[%clk 0:01:55.9]} 8. h3 {[%clk
0:02:48.6]} 8... Bxe2 {[%clk 0:01:55.9]} 9. Nxe2 {[%clk 0:02:43]} 9... Nd7
{[%clk 0:01:56]} 10. d4 {[%clk 0:02:23.6]} 10... exd4 {[%clk 0:01:52]} 11. Nxd4
{[%clk 0:02:24.5]} 11... Nxd4 {[%clk 0:01:49.8]} 12. Qxd4 {[%clk 0:02:25.4]}
12... Bc5 {[%clk 0:01:50.3]} 13. Qc3 {[%clk 0:02:25]} 13... Ne5 {[%clk
0:01:50.4]} 14. b4 {[%clk 0:02:19.9]} 14... Bb6 {[%clk 0:01:12.4]} 15. c5 {[%clk
0:02:20.2]} 15... dxc5 {[%clk 0:01:11.9]} 16. bxc5 {[%clk 0:02:20.5]} 16... Bxc5
{[%clk 0:01:02]} 17. Qxc5 {[%clk 0:02:19.2]} 17... Nd3 {[%clk 0:01:01.2]} 18.
Qc3 {[%clk 0:02:17.8]} 18... Nxc1 {[%clk 0:01:01.2]} 19. Raxc1 {[%clk
0:02:17.8]} 19... c6 {[%clk 0:01:01.9]} 20. Rfd1 {[%clk 0:02:18.2]} 20... Qe7
{[%clk 0:01:02.4]} 21. Qc5 {[%clk 0:02:14.6]} 21... Qxc5 {[%clk 0:01:01.3]} 22.
Rxc5 {[%clk 0:02:14.5]} 22... Rfd8 {[%clk 0:01:01.5]} 23. Rcc1 {[%clk
0:02:13.6]} 23... Kf8 {[%clk 0:01:00.8]} 24. f4 {[%clk 0:02:13.8]} 24... Ke7
{[%clk 0:01:01.1]} 25. Kf2 {[%clk 0:02:14.3]} 25... Rac8 {[%clk 0:00:59.5]} 26.
Ke3 {[%clk 0:02:14.3]} 26... f6 {[%clk 0:00:57.8]} 27. Bf3 {[%clk 0:02:12.7]}
27... c5 {[%clk 0:00:56.5]} 28. Bg4 {[%clk 0:02:11.4]} 28... Rc7 {[%clk
0:00:56.5]} 29. Rxd8 {[%clk 0:02:10.7]} 29... Kxd8 {[%clk 0:00:57.4]} 30. Rd1+
{[%clk 0:02:11.1]} 30... Ke7 {[%clk 0:00:57.8]} 31. Kd3 {[%clk 0:02:11.4]} 31...
b5 {[%clk 0:00:58]} 32. Kc3 {[%clk 0:02:11.4]} 32... a5 {[%clk 0:00:58.5]} 33.
e5 {[%clk 0:02:09.2]} 33... fxe5 {[%clk 0:00:58]} 34. fxe5 {[%clk 0:02:10.1]}
34... c4 {[%clk 0:00:58.5]} 35. a3 {[%clk 0:02:08.9]} 35... g6 {[%clk
0:00:58.3]} 36. e6 {[%clk 0:02:08.5]} 36... h5 {[%clk 0:00:57.3]} 37. Bf3 {[%clk
0:01:56.6]} 37... Kxe6 {[%clk 0:00:57.2]} 38. Rd5 {[%clk 0:01:56.1]} 38... b4+
{[%clk 0:00:47.9]} 39. axb4 {[%clk 0:01:57]} 39... axb4+ {[%clk 0:00:48.7]} 40.
Kxb4 {[%clk 0:01:57.9]} 40... c3 {[%clk 0:00:49.2]} 41. Rd1 {[%clk 0:01:58]}
41... Ke5 {[%clk 0:00:43.4]} 42. Kb3 {[%clk 0:01:53.6]} 42... c2 {[%clk
0:00:43.1]} 43. Rc1 {[%clk 0:01:51.9]} 43... Rf7 {[%clk 0:00:35.9]} 44. Be2
{[%clk 0:01:46.5]} 44... Rf2 {[%clk 0:00:34.8]} 45. Rxc2 {[%clk 0:01:46.4]}
45... Rh2 {[%clk 0:00:34.7]} 46. Bf1 {[%clk 0:01:27.1]} 46... Rh1 {[%clk
0:00:23]} 47. Rf2 {[%clk 0:01:20.3]} 47... Rg1 {[%clk 0:00:19.7]} 48. Bg2 {[%clk
0:01:15.8]} 48... Re1 {[%clk 0:00:20.2]} 49. Kc3 {[%clk 0:01:14.7]} 49... Re3+
{[%clk 0:00:20.3]} 50. Kd2 {[%clk 0:01:14.9]} 50... Rxg3 {[%clk 0:00:21.2]} 51.
Ke2 {[%clk 0:01:15.5]} 51... g5 {[%clk 0:00:20.8]} 52. Kf1 {[%clk 0:01:13.5]}
52... Ra3 {[%clk 0:00:19.5]} 53. Rb2 {[%clk 0:01:11.5]} 53... Kf4 {[%clk
0:00:18.1]} 54. Kf2 {[%clk 0:01:11.3]} 54... Ra4 {[%clk 0:00:18.4]} 55. Bc6
{[%clk 0:01:09.7]} 55... Rc4 {[%clk 0:00:17.6]} 56. Bb5 {[%clk 0:01:04.5]} 56...
Rd4 {[%clk 0:00:17.2]} 57. Be2 {[%clk 0:01:04]} 57... g4 {[%clk 0:00:15.4]} 58.
h4 {[%clk 0:01:03.7]} 58... Rd5 {[%clk 0:00:14]} 59. Rb4+ {[%clk 0:01:03]} 59...
Kf5 {[%clk 0:00:14.3]} 60. Ke3 {[%clk 0:01:01.3]} 60... Re5+ {[%clk 0:00:14.1]}
61. Kf2 {[%clk 0:01:00]} 61... Rd5 {[%clk 0:00:10.6]} 62. Rb6 {[%clk 0:00:56.8]}
62... Kf4 {[%clk 0:00:09.7]} 63. Rf6+ {[%clk 0:00:56.1]} 63... Rf5 {[%clk
0:00:09.6]} 64. Rh6 {[%clk 0:00:55.3]} 64... Re5 {[%clk 0:00:09.5]} 65. Bd3
{[%clk 0:00:52.4]} 65... Rd5 {[%clk 0:00:09.8]} 66. Bf1 {[%clk 0:00:33.2]} 66...
Rd2+ {[%clk 0:00:08.7]} 67. Ke1 {[%clk 0:00:32.8]} 67... Rd5 {[%clk 0:00:08.1]}
68. Ra6 {[%clk 0:00:31.8]} 68... Kg3 {[%clk 0:00:07.8]} 69. Rb6 {[%clk
0:00:26.2]} 69... Re5+ {[%clk 0:00:07.3]} 70. Be2 {[%clk 0:00:23.9]} 70... Kh2
{[%clk 0:00:07.4]} 71. Rb5 {[%clk 0:00:18.1]} 71... Rxb5 {[%clk 0:00:04.5]} 72.
Bxb5 {[%clk 0:00:19]} 72... g3 {[%clk 0:00:04.7]} 73. Bc6 {[%clk 0:00:17.8]}
73... Kg1 {[%clk 0:00:04.8]} 74. Ke2 {[%clk 0:00:17.3]} 74... g2 {[%clk
0:00:05.2]} 75. Bxg2 {[%clk 0:00:16.6]} 75... Kxg2 {[%clk 0:00:05.4]} 76. Ke1
{[%clk 0:00:17.5]} 76... Kh3 {[%clk 0:00:04.6]} 77. Kf1 {[%clk 0:00:18.4]} 77...
Kxh4 {[%clk 0:00:05.5]} 78. Kg1 {[%clk 0:00:19.2]} 78... Kg4 {[%clk 0:00:06.4]}
79. Kh1 {[%clk 0:00:20.1]} 79... h4 {[%clk 0:00:06.6]} 80. Kh2 {[%clk 0:00:21]}
80... h3 {[%clk 0:00:07.5]} 81. Kh1 {[%clk 0:00:21.9]} 81... Kg3 {[%clk
0:00:08.3]} 82. Kg1 {[%clk 0:00:22.6]} 82... h2+ {[%clk 0:00:09.2]} 83. Kh1
{[%clk 0:00:23.5]} 83... Kh3 {[%clk 0:00:10.1]} 1/2-1/2

[Event "*** SCC Grand Prix: Titled Tuesday Blitz"]
[Site "Chess.com"]
[Date "2020.07.14"]
[Round "4"]
[White "Msb2"]
[Black "GMNickPert"]
[Result "1/2-1/2"]
[WhiteElo "2881"]
[BlackElo "2679"]
[TimeControl "180+1"]
[EndTime "10:41:04 PDT"]
[Termination "Game drawn - insufficient material"]

1. d4 {[%clk 0:03:00.9]} 1... e6 {[%clk 0:02:59.7]} 2. c4 {[%clk 0:03:01]} 2...
f5 {[%clk 0:02:59.9]} 3. g3 {[%clk 0:03:00]} 3... Nf6 {[%clk 0:03:00.4]} 4. Bg2
{[%clk 0:03:00.3]} 4... Be7 {[%clk 0:03:00.9]} 5. Nf3 {[%clk 0:02:59.8]} 5...
O-O {[%clk 0:03:01.1]} 6. O-O {[%clk 0:03:00.7]} 6... d6 {[%clk 0:03:01.3]} 7.
Nc3 {[%clk 0:02:57.2]} 7... Ne4 {[%clk 0:03:01.6]} 8. Qc2 {[%clk 0:02:57.2]}
8... Nxc3 {[%clk 0:03:01.2]} 9. bxc3 {[%clk 0:02:57.6]} 9... Nc6 {[%clk
0:03:01.1]} 10. e4 {[%clk 0:02:56.8]} 10... e5 {[%clk 0:03:00]} 11. exf5 {[%clk
0:02:36.8]} 11... Bxf5 {[%clk 0:02:59.4]} 12. Qb3 {[%clk 0:02:37.1]} 12... Rb8
{[%clk 0:02:47.9]} 13. dxe5 {[%clk 0:02:30.5]} 13... dxe5 {[%clk 0:02:46.4]} 14.
Rd1 {[%clk 0:02:27.6]} 14... Qe8 {[%clk 0:02:46.1]} 15. Re1 {[%clk 0:01:59.3]}
15... Bc5 {[%clk 0:02:20.8]} 16. Be3 {[%clk 0:01:56]} 16... Na5 {[%clk
0:01:53.4]} 17. Qb5 {[%clk 0:01:49]} 17... Qxb5 {[%clk 0:01:52.9]} 18. cxb5
{[%clk 0:01:49.9]} 18... Bxe3 {[%clk 0:01:53.5]} 19. Rxe3 {[%clk 0:01:47.5]}
19... Nc4 {[%clk 0:01:53.7]} 20. Ree1 {[%clk 0:01:47.5]} 20... Rbe8 {[%clk
0:01:28.3]} 21. Ng5 {[%clk 0:01:39.6]} 21... Nd6 {[%clk 0:01:27.2]} 22. c4
{[%clk 0:01:24.9]} 22... h6 {[%clk 0:01:25.4]} 23. Bd5+ {[%clk 0:01:24.7]} 23...
Kh8 {[%clk 0:01:25.2]} 24. Nf3 {[%clk 0:01:25.4]} 24... e4 {[%clk 0:01:17.8]}
25. Nd4 {[%clk 0:01:17.7]} 25... Bh7 {[%clk 0:01:14.7]} 26. c5 {[%clk
0:01:09.8]} 26... Re5 {[%clk 0:00:36.1]} 27. Bb3 {[%clk 0:00:40.3]} 27... Nf5
{[%clk 0:00:28.2]} 28. Ne6 {[%clk 0:00:40.6]} 28... Rc8 {[%clk 0:00:28.4]} 29.
Rad1 {[%clk 0:00:38.7]} 29... Bg8 {[%clk 0:00:27.9]} 30. Nf4 {[%clk 0:00:39]}
30... Bxb3 {[%clk 0:00:27.4]} 31. Ng6+ {[%clk 0:00:38.4]} 31... Kh7 {[%clk
0:00:26.3]} 32. Nxe5 {[%clk 0:00:39.3]} 32... Bxd1 {[%clk 0:00:26.6]} 33. Rxd1
{[%clk 0:00:40.2]} 33... Re8 {[%clk 0:00:25.8]} 34. Ng4 {[%clk 0:00:36.2]} 34...
h5 {[%clk 0:00:24.8]} 35. Ne3 {[%clk 0:00:36.4]} 35... Nxe3 {[%clk 0:00:25.1]}
36. fxe3 {[%clk 0:00:37.3]} 36... Re5 {[%clk 0:00:25.6]} 37. Rc1 {[%clk
0:00:34.1]} 37... Rd5 {[%clk 0:00:25.5]} 38. Rc4 {[%clk 0:00:34.1]} 38... Kg6
{[%clk 0:00:22.4]} 39. Rxe4 {[%clk 0:00:17.8]} 39... Rxc5 {[%clk 0:00:22.3]} 40.
a4 {[%clk 0:00:18.2]} 40... Kf5 {[%clk 0:00:20.5]} 41. Rf4+ {[%clk 0:00:17.4]}
41... Ke5 {[%clk 0:00:19.7]} 42. h4 {[%clk 0:00:17.4]} 42... a6 {[%clk
0:00:18.7]} 43. bxa6 {[%clk 0:00:16.4]} 43... bxa6 {[%clk 0:00:19.6]} 44. Kf2
{[%clk 0:00:16.7]} 44... g6 {[%clk 0:00:19.7]} 45. Kf3 {[%clk 0:00:16.4]} 45...
Rc1 {[%clk 0:00:19.3]} 46. Re4+ {[%clk 0:00:15.4]} 46... Kf6 {[%clk 0:00:17.9]}
47. Rb4 {[%clk 0:00:14.6]} 47... Rf1+ {[%clk 0:00:14.5]} 48. Ke2 {[%clk
0:00:14.4]} 48... Rg1 {[%clk 0:00:14.4]} 49. Kf2 {[%clk 0:00:14.4]} 49... Rc1
{[%clk 0:00:14.5]} 50. Kf3 {[%clk 0:00:06.7]} 50... Rf1+ {[%clk 0:00:14.1]} 51.
Ke4 {[%clk 0:00:06.9]} 51... Rg1 {[%clk 0:00:14.5]} 52. Rc4 {[%clk 0:00:05.3]}
52... Rxg3 {[%clk 0:00:14.3]} 53. Rc6+ {[%clk 0:00:05.7]} 53... Kg7 {[%clk
0:00:12.5]} 54. Rxc7+ {[%clk 0:00:06]} 54... Kh6 {[%clk 0:00:12.5]} 55. Ra7
{[%clk 0:00:02.5]} 55... Rg4+ {[%clk 0:00:12.5]} 56. Kd5 {[%clk 0:00:02.6]}
56... Rxa4 {[%clk 0:00:13]} 57. e4 {[%clk 0:00:03.5]} 57... g5 {[%clk 0:00:12]}
58. hxg5+ {[%clk 0:00:03.5]} 58... Kxg5 {[%clk 0:00:12.9]} 59. e5 {[%clk
0:00:03.8]} 59... Ra1 {[%clk 0:00:12.2]} 60. Rg7+ {[%clk 0:00:03.9]} 60... Kf5
{[%clk 0:00:11.8]} 61. Rf7+ {[%clk 0:00:03.9]} 61... Kg6 {[%clk 0:00:12.3]} 62.
e6 {[%clk 0:00:04.5]} 62... Rd1+ {[%clk 0:00:11.9]} 63. Kc5 {[%clk 0:00:05]}
63... Re1 {[%clk 0:00:11.9]} 64. Kd6 {[%clk 0:00:05.3]} 64... Rd1+ {[%clk
0:00:12.3]} 65. Kc6 {[%clk 0:00:05.5]} 65... Re1 {[%clk 0:00:12.7]} 66. Kd7
{[%clk 0:00:06]} 66... Rd1+ {[%clk 0:00:13.1]} 67. Ke8 {[%clk 0:00:04.4]} 67...
h4 {[%clk 0:00:12.4]} 68. Rf2 {[%clk 0:00:03.1]} 68... Re1 {[%clk 0:00:12.3]}
69. e7 {[%clk 0:00:03.3]} 69... Kg5 {[%clk 0:00:12.6]} 70. Kf8 {[%clk
0:00:02.2]} 70... h3 {[%clk 0:00:11.7]} 71. Ra2 {[%clk 0:00:02.1]} 71... Kg4
{[%clk 0:00:11]} 72. Rxa6 {[%clk 0:00:02.1]} 72... Rxe7 {[%clk 0:00:09.5]} 73.
Kxe7 {[%clk 0:00:01.8]} 73... h2 {[%clk 0:00:10.4]} 74. Ra1 {[%clk 0:00:02.4]}
74... Kg3 {[%clk 0:00:10.6]} 75. Rh1 {[%clk 0:00:03.3]} 75... Kg2 {[%clk
0:00:11.5]} 76. Rxh2+ {[%clk 0:00:04.1]} 76... Kxh2 {[%clk 0:00:12.2]} 1/2-1/2

[Event "*** SCC Grand Prix: Titled Tuesday Blitz"]
[Site "Chess.com"]
[Date "2020.07.14"]
[Round "4"]
[White "Diego_FloresQ"]
[Black "tigra"]
[Result "0-1"]
[WhiteElo "2495"]
[BlackElo "2823"]
[TimeControl "180+1"]
[EndTime "10:41:06 PDT"]
[Termination "tigra won by resignation"]

1. e4 {[%clk 0:02:49.6]} 1... c5 {[%clk 0:02:50.5]} 2. Nf3 {[%clk 0:02:48.1]}
2... d6 {[%clk 0:02:51]} 3. d4 {[%clk 0:02:47.5]} 3... cxd4 {[%clk 0:02:51.9]}
4. Nxd4 {[%clk 0:02:47.5]} 4... Nf6 {[%clk 0:02:52.6]} 5. Nc3 {[%clk 0:02:47.1]}
5... a6 {[%clk 0:02:53.1]} 6. Bg5 {[%clk 0:02:47.2]} 6... Nbd7 {[%clk
0:02:48.6]} 7. Qe2 {[%clk 0:02:45]} 7... h6 {[%clk 0:02:48]} 8. Bh4 {[%clk
0:02:44.1]} 8... g6 {[%clk 0:02:47.9]} 9. f4 {[%clk 0:02:37.1]} 9... e5 {[%clk
0:02:47.8]} 10. fxe5 {[%clk 0:02:36.2]} 10... dxe5 {[%clk 0:02:47.9]} 11. O-O-O
{[%clk 0:02:36.6]} 11... Qc7 {[%clk 0:02:40.6]} 12. Nb3 {[%clk 0:02:34.2]} 12...
b5 {[%clk 0:02:40.7]} 13. Nd5 {[%clk 0:02:28.4]} 13... Nxd5 {[%clk 0:02:40.2]}
14. exd5 {[%clk 0:02:29.3]} 14... Bd6 {[%clk 0:02:34.6]} 15. g4 {[%clk
0:02:19.5]} 15... h5 {[%clk 0:02:32.4]} 16. g5 {[%clk 0:02:01.2]} 16... O-O
{[%clk 0:02:13.7]} 17. Bg2 {[%clk 0:02:00.6]} 17... a5 {[%clk 0:02:11.6]} 18.
Nd2 {[%clk 0:02:00.9]} 18... a4 {[%clk 0:02:03.9]} 19. Ne4 {[%clk 0:01:56.7]}
19... b4 {[%clk 0:01:54.6]} 20. Kb1 {[%clk 0:01:56.1]} 20... b3 {[%clk
0:01:48.7]} 21. Bf3 {[%clk 0:01:40.4]} 21... Ba6 {[%clk 0:01:44.2]} 22. Qg2
{[%clk 0:01:34.3]} 22... bxa2+ {[%clk 0:01:28.4]} 23. Ka1 {[%clk 0:01:31.8]}
23... a3 {[%clk 0:01:28.9]} 24. b3 {[%clk 0:01:26.9]} 24... Nc5 {[%clk 0:01:24]}
25. Nf6+ {[%clk 0:01:17.4]} 25... Kg7 {[%clk 0:01:22.5]} 26. Kxa2 {[%clk
0:01:17.2]} 26... Na4 {[%clk 0:00:59.2]} 27. Ne4 {[%clk 0:00:40.1]} 27... Nc3+
{[%clk 0:00:58.4]} 28. Nxc3 {[%clk 0:00:39.4]} 28... Qxc3 {[%clk 0:00:59.3]} 29.
Rb1 {[%clk 0:00:39.4]} 29... e4 {[%clk 0:00:25.3]} 30. Bxe4 {[%clk 0:00:36.2]}
30... Be5 {[%clk 0:00:25.8]} 31. Be1 {[%clk 0:00:34.7]} 31... Qb2+ {[%clk
0:00:22]} 32. Rxb2 {[%clk 0:00:31.3]} 32... axb2 {[%clk 0:00:22.9]} 33. c3
{[%clk 0:00:26.6]} 33... Bf1+ {[%clk 0:00:17.8]} 34. Kxb2 {[%clk 0:00:26.6]}
34... Bxg2 {[%clk 0:00:18.5]} 35. Bxg2 {[%clk 0:00:27.2]} 35... Rfe8 {[%clk
0:00:17.7]} 36. Bf3 {[%clk 0:00:20.2]} 36... Rac8 {[%clk 0:00:15.9]} 37. Bd2
{[%clk 0:00:19.6]} 37... Kh7 {[%clk 0:00:11.9]} 38. h3 {[%clk 0:00:16.7]} 38...
Bxc3+ {[%clk 0:00:09.9]} 39. Bxc3 {[%clk 0:00:15.6]} 39... Re3 {[%clk
0:00:10.5]} 40. Bf6 {[%clk 0:00:11.5]} 40... Rxf3 {[%clk 0:00:10.5]} 41. Rd1
{[%clk 0:00:11.2]} 41... Rb8 {[%clk 0:00:09.3]} 42. d6 {[%clk 0:00:09.5]} 42...
Rfxb3+ {[%clk 0:00:03.2]} 43. Kc2 {[%clk 0:00:09.8]} 43... R3b7 {[%clk
0:00:01.5]} 44. d7 {[%clk 0:00:10.2]} 44... Rc7+ {[%clk 0:00:01.8]} 45. Bc3
{[%clk 0:00:06.2]} 45... Rd8 {[%clk 0:00:02]} 46. Kb2 {[%clk 0:00:06.1]} 46...
Rcxd7 {[%clk 0:00:02.9]} 47. Re1 {[%clk 0:00:06.9]} 47... Rb8+ {[%clk
0:00:03.4]} 48. Kc1 {[%clk 0:00:06]} 48... Rc8 {[%clk 0:00:04.3]} 49. Kb2 {[%clk
0:00:06.3]} 49... Rb7+ {[%clk 0:00:05]} 50. Kc2 {[%clk 0:00:06.9]} 50... Rbc7
{[%clk 0:00:05.6]} 51. Re3 {[%clk 0:00:07.4]} 51... Kg8 {[%clk 0:00:05.8]} 52.
Kd2 {[%clk 0:00:07.9]} 52... Kf8 {[%clk 0:00:04.8]} 53. Bf6 {[%clk 0:00:08.4]}
53... Rd7+ {[%clk 0:00:05.1]} 54. Ke1 {[%clk 0:00:06.3]} 54... Rdc7 {[%clk
0:00:05.7]} 55. Kf2 {[%clk 0:00:06.1]} 55... Kg8 {[%clk 0:00:05.8]} 56. h4
{[%clk 0:00:06]} 56... Rc6 {[%clk 0:00:06.7]} 57. Kg3 {[%clk 0:00:06.3]} 57...
Re6 {[%clk 0:00:07.4]} 58. Rc3 {[%clk 0:00:06.6]} 58... Rce8 {[%clk 0:00:07.9]}
59. Rc7 {[%clk 0:00:06.6]} 59... Re3+ {[%clk 0:00:07.9]} 60. Kf2 {[%clk
0:00:07.4]} 60... R3e4 {[%clk 0:00:08.8]} 61. Kg3 {[%clk 0:00:07.5]} 61... Re2
{[%clk 0:00:09.1]} 62. Bd4 {[%clk 0:00:06.6]} 62... R8e7 {[%clk 0:00:08.7]} 63.
Rc8+ {[%clk 0:00:05.8]} 63... Re8 {[%clk 0:00:09.3]} 64. Rc7 {[%clk 0:00:06.4]}
64... R2e4 {[%clk 0:00:09.5]} 65. Bf6 {[%clk 0:00:06.2]} 65... Rg4+ {[%clk
0:00:09.7]} 66. Kh3 {[%clk 0:00:06.2]} 66... Re3+ {[%clk 0:00:09.7]} 67. Kh2
{[%clk 0:00:06.9]} 67... Rxh4+ {[%clk 0:00:10.2]} 68. Kg2 {[%clk 0:00:07.5]}
68... Rhe4 {[%clk 0:00:10.9]} 69. Rd7 {[%clk 0:00:06.4]} 69... Re8 {[%clk
0:00:10.9]} 70. Kh2 {[%clk 0:00:06]} 70... R3e6 {[%clk 0:00:11.2]} 71. Kg2
{[%clk 0:00:06.6]} 71... Rxf6 {[%clk 0:00:11.6]} 72. gxf6 {[%clk 0:00:07.5]}
72... Re6 {[%clk 0:00:12.1]} 73. Rd8+ {[%clk 0:00:07.4]} 73... Kh7 {[%clk
0:00:12.5]} 0-1